fUST/lending_fUST_20250526
["ID","MTS","AMOUNT","RATE_DAILY","PERIOD"]
[362368018,1748221838334,-396.80656926,0.00019177,2]
[362368019,1748221838351,-103.19343074,0.00019177,2]
[362368020,1748221838360,-500.0,0.00019177,2]
[362368021,1748221838370,-500.0,0.00019177,2]
[362368022,1748221838379,-500.0,0.00019177,2]
[362368023,1748221838388,-599.2788703,0.00019177,2]
[362368024,1748221838398,-500.0,0.00019177,2]
[362368025,1748221838407,-500.0,0.00019177,2]
[362368026,1748221838416,-500.0,0.00019177,2]
[362368027,1748221838425,-467.67839646,0.00019177,2]
[362368028,1748221838434,-500.0,0.00019177,2]
[362368029,1748221838644,-500.0,0.00019177,2]
[362368030,1748221838659,-620.0,0.00019177,2]
[362368031,1748221838669,-93.99509953,0.00019177,2]
[362368457,1748221845329,-356.26375853,0.00019177,2]
[362368458,1748221845339,-294.04185938,0.00019177,2]
[362368459,1748221845349,-199.33798437,0.00019177,2]
[362368460,1748221845359,-335.6843834,0.00019178,2]
[362368461,1748221845371,-94.3156166,0.00019178,2]
[362368462,1748221845381,-400.0,0.00019178,2]
[362368463,1748221845390,-400.0,0.00019178,2]
[362368464,1748221845400,-400.0,0.00019178,2]
[362368465,1748221845409,-450.0,0.00019178,2]
[362368466,1748221845419,-430.0,0.00019178,2]
[362368467,1748221845428,-430.0,0.00019178,2]
[362368468,1748221845438,-430.0,0.00019178,2]
[362368469,1748221845448,-430.0,0.00019178,2]
[362368470,1748221845458,-430.0,0.00019178,2]
[362368471,1748221845467,-430.0,0.00019178,2]
[362368472,1748221845477,-430.0,0.00019178,2]
[362368473,1748221845487,-430.0,0.00019178,2]
[362368474,1748221845496,-400.0,0.00019178,2]
[362368475,1748221845505,-430.0,0.00019178,2]
[362368476,1748221845516,-490.0,0.00019178,2]
[362368477,1748221845525,-430.0,0.00019178,2]
[362368478,1748221845535,-400.0,0.00019178,2]
[362368479,1748221845545,-430.0,0.00019178,2]
[362368480,1748221845556,-430.0,0.00019178,2]
[362368481,1748221845566,-430.0,0.00019178,2]
[362368482,1748221845576,-430.0,0.00019178,2]
[362368483,1748221845586,-449.83292086,0.00019178,2]
[362368484,1748221845597,-430.0,0.00019178,2]
[362368485,1748221845606,-842.85743752,0.00019178,2]
[362368486,1748221845620,-169.95046659,0.00019178,2]
[362368487,1748221845631,-155.01978489,0.00019178,2]
[362368489,1748221845643,-244.98021511,0.00019178,2]
[362368491,1748221845653,-430.0,0.00019178,2]
[362368493,1748221845662,-450.0,0.00019178,2]
[362368495,1748221845672,-430.0,0.00019178,2]
[362368497,1748221845682,-278.29807434,0.00019178,2]
[362368498,1748221845691,-430.0,0.00019178,2]
[362368500,1748221845701,-430.0,0.00019178,2]
[362368502,1748221845710,-17.75727064,0.00019178,2]
[362368504,1748221845723,-412.24272936,0.00019178,2]
[362368506,1748221845732,-430.0,0.00019178,2]
[362368508,1748221845742,-430.0,0.00019178,2]
[362368510,1748221845752,-430.0,0.00019178,2]
[362368512,1748221845764,-430.0,0.00019178,2]
[362368514,1748221845775,-450.0,0.00019178,2]
[362368516,1748221845785,-430.0,0.00019178,2]
[362368518,1748221845794,-430.0,0.00019178,2]
[362368520,1748221845806,-430.0,0.00019178,2]
[362368522,1748221845816,-218.70706259,0.00019178,2]
[362368523,1748221845828,-211.29293741,0.00019178,2]
[362368524,1748221845839,-430.0,0.00019178,2]
[362368525,1748221845849,-430.0,0.00019178,2]
[362368526,1748221845858,-460.0,0.00019178,2]
[362368528,1748221845868,-430.0,0.00019178,2]
[362368529,1748221845877,-184.65840882,0.00019178,2]
[362368530,1748221845890,-245.34159118,0.00019178,2]
[362368531,1748221845899,-290.66786187,0.00019178,2]
[362368532,1748221845911,-139.33213813,0.00019178,2]
[362368533,1748221845921,-430.0,0.00019178,2]
[362368534,1748221845931,-296.83078456,0.00019178,2]
[362368535,1748221845941,-430.0,0.00019178,2]
[362368536,1748221845952,-430.0,0.00019178,2]
[362368537,1748221845963,-430.0,0.00019178,2]
[362368538,1748221845973,-42.42724811,0.00019178,2]
[362368539,1748221845984,-303.486814,0.00019178,2]
[362368540,1748221845996,-84.08593789,0.00019178,2]
[362368541,1748221846005,-430.0,0.00019178,2]
[362368542,1748221846016,-430.0,0.00019178,2]
[362368543,1748221846026,-204.81508593,0.00019178,2]
[362368544,1748221846037,-195.18491407,0.00019178,2]
[362368545,1748221846047,-450.0,0.00019178,2]
[362368546,1748221846058,-430.0,0.00019178,2]
[362368547,1748221846068,-430.0,0.00019178,2]
[362368548,1748221846078,-430.0,0.00019178,2]
[362368550,1748221846088,-430.0,0.00019178,2]
[362368552,1748221846099,-450.0,0.00019178,2]
[362368553,1748221846108,-451.29922594,0.00019178,2]
[362368554,1748221846118,-430.0,0.00019178,2]
[362368555,1748221846128,-430.0,0.00019178,2]
[362368556,1748221846138,-430.0,0.00019178,2]
[362368557,1748221846148,-224.00983647,0.00019178,2]
[362368562,1748221846720,-175.99016353,0.00019178,2]
[362368563,1748221846731,-430.0,0.00019178,2]
[362368564,1748221846742,-430.0,0.00019178,2]
[362368565,1748221846752,-430.0,0.00019178,2]
[362368566,1748221846766,-450.0,0.00019178,2]
[362368567,1748221846775,-430.0,0.00019178,2]
[362368568,1748221846785,-450.0,0.00019178,2]
[362368569,1748221846795,-400.0,0.00019178,2]
[362368570,1748221846807,-430.0,0.00019178,2]
[362368572,1748221846817,-300.0,0.00019178,2]
[362368573,1748221846827,-430.0,0.00019178,2]
[362368574,1748221846838,-450.0,0.00019178,2]
[362368575,1748221846849,-430.0,0.00019178,2]
[362368576,1748221846859,-430.0,0.00019178,2]
[362368577,1748221846869,-430.0,0.00019178,2]
[362368578,1748221846881,-400.0,0.00019178,2]
[362368579,1748221846891,-400.0,0.00019178,2]
[362368580,1748221846902,-430.0,0.00019178,2]
[362368581,1748221846911,-430.0,0.00019178,2]
[362368582,1748221846920,-430.0,0.00019178,2]
[362368583,1748221846931,-400.0,0.00019178,2]
[362368584,1748221846941,-400.0,0.00019178,2]
[362368585,1748221846952,-450.0,0.00019178,2]
[362368586,1748221846962,-430.0,0.00019178,2]
[362368587,1748221846972,-450.0,0.00019178,2]
[362368588,1748221846982,-430.0,0.00019178,2]
[362368589,1748221846992,-430.0,0.00019178,2]
[362368590,1748221847003,-450.0,0.00019178,2]
[362368591,1748221847013,-430.0,0.00019178,2]
[362368592,1748221847023,-400.0,0.00019178,2]
[362368593,1748221847032,-450.0,0.00019178,2]
[362368594,1748221847041,-450.0,0.00019178,2]
[362368595,1748221847051,-400.0,0.00019178,2]
[362368596,1748221847061,-430.0,0.00019178,2]
[362368597,1748221847071,-430.0,0.00019178,2]
[362368598,1748221847080,-430.0,0.00019178,2]
[362368599,1748221847090,-430.0,0.00019178,2]
[362368600,1748221847099,-430.0,0.00019178,2]
[362368601,1748221847109,-550.84734638,0.00019178,2]
[362368602,1748221847119,-430.0,0.00019178,2]
[362368603,1748221847129,-430.0,0.00019178,2]
[362368604,1748221847138,-430.0,0.00019178,2]
[362368605,1748221847148,-430.0,0.00019178,2]
[362368606,1748221847157,-205.80290436,0.00019178,2]
[362368607,1748221847167,-430.0,0.00019178,2]
[362368608,1748221847176,-430.0,0.00019178,2]
[362368609,1748221847186,-430.0,0.00019178,2]
[362368610,1748221847195,-430.0,0.00019178,2]
[362368611,1748221847204,-400.7584644,0.00019178,2]
[362368612,1748221847214,-400.0,0.00019178,2]
[362368613,1748221847223,-430.0,0.00019178,2]
[362368614,1748221847232,-430.0,0.00019178,2]
[362368615,1748221847242,-430.0,0.00019178,2]
[362368616,1748221847251,-430.0,0.00019178,2]
[362368617,1748221847262,-430.0,0.00019178,2]
[362368618,1748221847272,-430.0,0.00019178,2]
[362368619,1748221847282,-430.0,0.00019178,2]
[362368620,1748221847291,-430.0,0.00019178,2]
[362368621,1748221847300,-430.0,0.00019178,2]
[362368622,1748221847310,-430.0,0.00019178,2]
[362368623,1748221847319,-430.0,0.00019178,2]
[362368624,1748221847329,-430.0,0.00019178,2]
[362368625,1748221847339,-430.0,0.00019178,2]
[362368626,1748221847350,-430.0,0.00019178,2]
[362368627,1748221847360,-430.0,0.00019178,2]
[362368628,1748221847369,-430.0,0.00019178,2]
[362368629,1748221847378,-430.0,0.00019178,2]
[362368630,1748221847389,-430.0,0.00019178,2]
[362368631,1748221847398,-430.0,0.00019178,2]
[362368632,1748221847408,-430.0,0.00019178,2]
[362368633,1748221847417,-430.0,0.00019178,2]
[362368634,1748221847427,-430.0,0.00019178,2]
[362368635,1748221847441,-430.0,0.00019178,2]
[362368636,1748221847452,-430.0,0.00019178,2]
[362368637,1748221847462,-430.0,0.00019178,2]
[362368638,1748221847471,-430.0,0.00019178,2]
[362368639,1748221847480,-430.0,0.00019178,2]
[362368640,1748221847490,-430.0,0.00019178,2]
[362368641,1748221847499,-430.0,0.00019178,2]
[362368642,1748221847508,-430.0,0.00019178,2]
[362368643,1748221847518,-430.0,0.00019178,2]
[362368644,1748221847527,-430.0,0.00019178,2]
[362368645,1748221847537,-371.42132255,0.00019178,2]
[362368646,1748221847546,-430.0,0.00019178,2]
[362368647,1748221847556,-441.61,0.00019178,2]
[362368648,1748221847565,-430.0,0.00019178,2]
[362368649,1748221847575,-430.0,0.00019178,2]
[362368650,1748221847584,-430.0,0.00019178,2]
[362368651,1748221847593,-430.0,0.00019178,2]
[362368652,1748221847602,-235.13968386,0.00019178,2]
[362368653,1748221847611,-430.0,0.00019178,2]
[362368654,1748221847621,-430.0,0.00019178,2]
[362368655,1748221847630,-430.0,0.00019178,2]
[362368656,1748221847640,-430.0,0.00019178,2]
[362368657,1748221847649,-430.0,0.00019178,2]
[362368658,1748221847658,-430.0,0.00019178,2]
[362368659,1748221847668,-430.0,0.00019178,2]
[362368660,1748221847677,-430.0,0.00019178,2]
[362368661,1748221847686,-430.0,0.00019178,2]
[362368662,1748221847695,-430.0,0.00019178,2]
[362368663,1748221847705,-430.0,0.00019178,2]
[362368664,1748221847714,-430.0,0.00019178,2]
[362368665,1748221847723,-430.0,0.00019178,2]
[362368666,1748221847733,-430.0,0.00019178,2]
[362368667,1748221847743,-430.0,0.00019178,2]
[362368668,1748221847752,-430.0,0.00019178,2]
[362368669,1748221847763,-430.0,0.00019178,2]
[362368670,1748221847773,-430.0,0.00019178,2]
[362368671,1748221847782,-430.0,0.00019178,2]
[362368672,1748221847792,-430.0,0.00019178,2]
[362368673,1748221847803,-430.0,0.00019178,2]
[362368674,1748221847813,-433.36724138,0.00019178,2]
[362368675,1748221847822,-430.0,0.00019178,2]
[362368676,1748221847831,-430.0,0.00019178,2]
[362368677,1748221847842,-430.0,0.00019178,2]
[362368678,1748221847852,-430.0,0.00019178,2]
[362368679,1748221847862,-430.0,0.00019178,2]
[362368680,1748221847872,-430.0,0.00019178,2]
[362368681,1748221847882,-430.0,0.00019178,2]
[362368682,1748221847891,-430.0,0.00019178,2]
[362368683,1748221847901,-430.0,0.00019178,2]
[362368684,1748221847910,-430.0,0.00019178,2]
[362368685,1748221847920,-430.0,0.00019178,2]
[362368686,1748221847932,-976.93,0.00019178,2]
[362368687,1748221847942,-430.0,0.00019178,2]
[362368688,1748221847951,-430.0,0.00019178,2]
[362368689,1748221847961,-3021.72,0.00019178,2]
[362368690,1748221847970,-430.0,0.00019178,2]
[362368691,1748221847984,-430.0,0.00019178,2]
[362368692,1748221847993,-430.0,0.00019178,2]
[362368693,1748221848002,-430.0,0.00019178,2]
[362368694,1748221848012,-470.0,0.00019178,2]
[362368695,1748221848021,-430.0,0.00019178,2]
[362368696,1748221848031,-430.0,0.00019178,2]
[362368697,1748221848040,-430.0,0.00019178,2]
[362368698,1748221848049,-430.0,0.00019178,2]
[362368699,1748221848059,-430.0,0.00019178,2]
[362368700,1748221848069,-3261.27,0.00019178,2]
[362368701,1748221848078,-430.0,0.00019178,2]
[362368702,1748221848088,-430.0,0.00019178,2]
[362368703,1748221848098,-430.0,0.00019178,2]
[362368704,1748221848107,-430.0,0.00019178,2]
[362368705,1748221848117,-430.0,0.00019178,2]
[362368706,1748221848127,-430.0,0.00019178,2]
[362368707,1748221848136,-430.0,0.00019178,2]
[362368708,1748221848146,-2107.1,0.00019178,2]
[362368709,1748221848155,-430.0,0.00019178,2]
[362368710,1748221848164,-430.0,0.00019178,2]
[362368711,1748221848174,-430.0,0.00019178,2]
[362368712,1748221848183,-450.0,0.00019178,2]
[362368713,1748221848193,-430.0,0.00019178,2]
[362368714,1748221848202,-450.0,0.00019178,2]
[362368715,1748221848211,-430.0,0.00019178,2]
[362368716,1748221848221,-430.0,0.00019178,2]
[362368717,1748221848231,-430.0,0.00019178,2]
[362368718,1748221848240,-430.0,0.00019178,2]
[362368719,1748221848249,-450.0,0.00019178,2]
[362368720,1748221848258,-430.0,0.00019178,2]
[362368721,1748221848267,-430.0,0.00019178,2]
[362368722,1748221848277,-271.15187498,0.00019178,2]
[362368723,1748221848286,-430.0,0.00019178,2]
[362368724,1748221848296,-430.0,0.00019178,2]
[362368725,1748221848305,-430.0,0.00019178,2]
[362368726,1748221848315,-430.0,0.00019178,2]
[362368727,1748221848325,-430.0,0.00019178,2]
[362368728,1748221848335,-430.0,0.00019178,2]
[362368729,1748221848346,-330.0,0.00019178,2]
[362368730,1748221848355,-152.0,0.00019228,2]
[362368731,1748221848364,-819.5,0.00019442,3]
[362368732,1748221848374,-409.75,0.00019442,3]
[362368733,1748221848384,-430.0,0.00019452,2]
[362368734,1748221848394,-430.0,0.00019452,2]
[362368735,1748221848403,-204.09729973,0.00019452,2]
[362368736,1748221848413,-430.0,0.00019452,2]
[362368737,1748221848423,-430.0,0.00019452,2]
[362368738,1748221848431,-430.0,0.00019452,2]
[362368739,1748221848441,-430.0,0.00019452,2]
[362368740,1748221848450,-430.0,0.00019452,2]
[362368741,1748221848459,-430.0,0.00019452,2]
[362368742,1748221848469,-430.0,0.00019452,2]
[362368743,1748221848478,-430.0,0.00019452,2]
[362368744,1748221848487,-470.0,0.00019452,2]
[362368745,1748221848496,-430.0,0.00019452,2]
[362368746,1748221848505,-430.0,0.00019452,2]
[362368747,1748221848514,-430.0,0.00019452,2]
[362368748,1748221848524,-430.0,0.00019452,2]
[362368749,1748221848535,-430.0,0.00019452,2]
[362368750,1748221848544,-430.0,0.00019452,2]
[362368751,1748221848554,-430.0,0.00019452,2]
[362368752,1748221848563,-470.0,0.00019452,2]
[362368753,1748221848573,-430.0,0.00019452,2]
[362368754,1748221848583,-430.0,0.00019452,2]
[362368755,1748221848593,-430.0,0.00019452,2]
[362368756,1748221848602,-430.0,0.00019452,2]
[362368757,1748221848612,-430.0,0.00019452,2]
[362368758,1748221848622,-430.0,0.00019452,2]
[362368759,1748221848631,-430.0,0.00019452,2]
[362368760,1748221848642,-430.0,0.00019452,2]
[362368761,1748221848655,-430.0,0.00019452,2]
[362368762,1748221848665,-430.0,0.00019452,2]
[362368763,1748221848674,-430.0,0.00019452,2]
[362368764,1748221848684,-430.0,0.00019452,2]
[362368765,1748221848694,-218.91,0.00019452,2]
[362368766,1748221848703,-430.0,0.00019452,2]
[362368767,1748221848713,-441.61,0.00019452,2]
[362368768,1748221848723,-235.17,0.00019452,2]
[362368769,1748221848862,-151.0,0.00019452,2]
[362368770,1748221848874,-976.93,0.00019452,2]
[362368771,1748221848884,-433.79197914,0.00019452,2]
[362368772,1748221848894,-3021.72,0.00019452,2]
[362368773,1748221848904,-430.0,0.00019452,2]
[362368774,1748221848914,-430.0,0.00019452,2]
[362368775,1748221848923,-430.0,0.00019452,2]
[362368776,1748221848933,-3261.27,0.00019452,2]
[362368777,1748221848942,-430.0,0.00019452,2]
[362368778,1748221848952,-430.0,0.00019452,2]
[362368779,1748221848962,-430.0,0.00019452,2]
[362368780,1748221848971,-430.0,0.00019452,2]
[362368781,1748221848981,-430.0,0.00019452,2]
[362368782,1748221848990,-2107.1,0.00019452,2]
[362368783,1748221849000,-325.63189709,0.00019452,2]
[362368784,1748221849009,-430.0,0.00019452,2]
[362368785,1748221849019,-430.0,0.00019452,2]
[362368786,1748221849028,-430.0,0.00019452,2]
[362368787,1748221849038,-430.0,0.00019452,2]
[362368788,1748221849048,-430.0,0.00019452,2]
[362368789,1748221849057,-430.0,0.00019452,2]
[362368790,1748221849068,-430.0,0.00019452,2]
[362368791,1748221849077,-430.0,0.00019452,2]
[362368792,1748221849086,-430.0,0.00019452,2]
[362368793,1748221849097,-430.0,0.00019452,2]
[362368794,1748221849106,-430.0,0.00019452,2]
[362368795,1748221849115,-430.0,0.00019452,2]
[362368796,1748221849125,-151.0,0.00019479,2]
[362368797,1748221849135,-198.0,0.00019507,2]
[362368798,1748221849144,-500.0,0.00019552,2]
[362368799,1748221849156,-430.0,0.00019726,2]
[362368800,1748221849166,-430.0,0.00019726,2]
[362368801,1748221849175,-441.61,0.00019726,2]
[362368802,1748221849185,-976.93,0.00019726,2]
[362368803,1748221849196,-3021.72,0.00019726,2]
[362368804,1748221849206,-430.0,0.00019726,2]
[362368805,1748221849217,-3261.27,0.00019726,2]
[362368806,1748221849227,-430.0,0.00019726,2]
[362368807,1748221849237,-430.0,0.00019726,2]
[362368808,1748221849246,-430.0,0.00019726,2]
[362368809,1748221849256,-2107.1,0.00019726,2]
[362368810,1748221849266,-430.0,0.00019726,2]
[362368811,1748221849275,-430.0,0.00019726,2]
[362368812,1748221849285,-365.09926588,0.000199,2]
[362368813,1748221849295,-327.0,0.00019903,2]
[362368814,1748221849304,-500.0,0.00019931,2]
[362368815,1748221849314,-500.0,0.00019931,2]
[362368816,1748221849323,-500.0,0.00019931,2]
[362368817,1748221849333,-500.0,0.00019931,2]
[362368818,1748221849342,-500.0,0.00019931,2]
[362368819,1748221849352,-263.29193762,0.00019931,2]
[362368820,1748221849362,-500.0,0.00019931,2]
[362368821,1748221849372,-500.0,0.00019931,2]
[362368822,1748221849381,-500.0,0.00019931,2]
[362368823,1748221849391,-303.34745566,0.00019931,2]
[362368824,1748221849401,-500.0,0.00019931,2]
[362368825,1748221849412,-500.0,0.00019931,2]
[362368826,1748221849421,-332.02600635,0.00019931,2]
[362368827,1748221849431,-500.0,0.00019931,2]
[362368828,1748221849441,-500.0,0.00019931,2]
[362368829,1748221849451,-500.0,0.00019931,2]
[362368830,1748221849461,-500.0,0.00019931,2]
[362368831,1748221849470,-423.00916439,0.0001996,2]
[362368832,1748221849480,-229.13142565,0.0001996,2]
[362368833,1748221849490,-160.0,0.0001996,2]
[362368834,1748221849499,-212.55626673,0.0001996,2]
[362368835,1748221849509,-894.64583333,0.0001996,2]
[362368836,1748221849519,-160.0,0.0001996,2]
[362368837,1748221849528,-430.0,0.0002,2]
[362368838,1748221849539,-430.0,0.0002,2]
[362368839,1748221849549,-441.61,0.0002,2]
[362368840,1748221849559,-976.93,0.0002,2]
[362368841,1748221849569,-3021.72,0.0002,2]
[362368842,1748221849579,-430.0,0.0002,2]
[362368843,1748221849589,-3261.27,0.0002,2]
[362368844,1748221849599,-430.0,0.0002,2]
[362368845,1748221849609,-430.0,0.0002,2]
[362368846,1748221849618,-430.0,0.0002,2]
[362368847,1748221849628,-2107.1,0.0002,2]
[362368848,1748221849638,-539.82,0.0002,2]
[362368849,1748221849648,-430.0,0.0002,2]
[362368850,1748221849658,-158.52349651,0.00020048,2]
[362368851,1748221849667,-500.0,0.00020064,2]
[362368852,1748221849678,-365.09926588,0.00020072,2]
[362368853,1748221849687,-222.31,0.00020173,2]
[362368854,1748221849697,-232.422201,0.00020187,2]
[362368855,1748221849707,-365.09926588,0.00020245,2]
[362368856,1748221849717,-430.0,0.00020273,2]
[362368857,1748221849727,-430.0,0.00020273,2]
[362368858,1748221849737,-441.61,0.00020273,2]
[362368859,1748221849747,-976.93,0.00020273,2]
[362368860,1748221849759,-3021.72,0.00020273,2]
[362368861,1748221849770,-430.0,0.00020273,2]
[362368862,1748221849779,-3261.27,0.00020273,2]
[362368863,1748221849790,-430.0,0.00020273,2]
[362368864,1748221849799,-430.0,0.00020273,2]
[362368865,1748221849811,-430.0,0.00020273,2]
[362368866,1748221849822,-2107.1,0.00020273,2]
[362368867,1748221849832,-430.0,0.00020273,2]
[362368868,1748221849841,-207.4,0.0002032,2]
[362368869,1748221849854,-365.09926588,0.00020417,3]
[362368870,1748221849864,-430.0,0.00020547,2]
[362368871,1748221849874,-430.0,0.00020547,2]
[362368872,1748221849886,-441.61,0.00020547,2]
[362368873,1748221849896,-976.93,0.00020547,2]
[362368874,1748221849907,-3021.72,0.00020547,2]
[362368875,1748221849917,-430.0,0.00020547,2]
[362368876,1748221849928,-3261.27,0.00020547,2]
[362368877,1748221849938,-430.0,0.00020547,2]
[362368878,1748221849948,-430.0,0.00020547,2]
[362368879,1748221849958,-430.0,0.00020547,2]
[362368880,1748221849967,-2107.1,0.00020547,2]
[362368881,1748221849977,-430.0,0.00020547,2]
[362368882,1748221849987,-365.09926588,0.0002059,3]
[362368883,1748221849997,-365.09926588,0.00020762,3]
[362368884,1748221850006,-1639.0,0.00020812,3]
[362368885,1748221850016,-819.5,0.00020812,3]
[362368886,1748221850026,-193.1606211,0.00020821,2]
[362368887,1748221850036,-430.0,0.00020821,2]
[362368888,1748221850046,-441.61,0.00020821,2]
[362368889,1748221850057,-976.93,0.00020821,2]
[362368890,1748221850067,-3021.72,0.00020821,2]
[362368891,1748221850077,-430.0,0.00020821,2]
[362368892,1748221850088,-3261.27,0.00020821,2]
[362368893,1748221850098,-430.0,0.00020821,2]
[362368894,1748221850107,-334.79,0.00020821,2]
[362368895,1748221850117,-430.0,0.00020821,2]
[362368896,1748221850127,-2107.1,0.00020821,2]
[362368897,1748221850138,-430.0,0.00020821,2]
[362368898,1748221850149,-500.0,0.00020925,2]
[362368899,1748221850159,-500.0,0.00020925,2]
[362368900,1748221850168,-600.0,0.00020925,2]
[362368901,1748221850178,-365.09926588,0.00020934,4]
[362368902,1748221850188,-158.52349651,0.00021018,2]
[362368903,1748221850198,-394.48,0.00021095,2]
[362368904,1748221850210,-441.61,0.00021095,2]
[362368905,1748221850221,-976.93,0.00021095,2]
[362368906,1748221850232,-3021.72,0.00021095,2]
[362368907,1748221850241,-430.0,0.00021095,2]
[362368908,1748221850251,-3261.27,0.00021095,2]
[362368909,1748221850261,-430.0,0.00021095,2]
[362368910,1748221850271,-430.0,0.00021095,2]
[362368911,1748221850282,-2107.1,0.00021095,2]
[362368912,1748221850296,-430.0,0.00021095,2]
[362368913,1748221850307,-365.09926588,0.00021107,4]
[362368914,1748221850317,-176.013,0.00021158,2]
[362368915,1748221850327,-500.0,0.0002116,2]
[362368916,1748221850339,-365.09926588,0.00021279,5]
[362368917,1748221850348,-250.1,0.00021294,2]
[362368918,1748221850358,-441.61,0.00021369,2]
[362368919,1748221850369,-976.93,0.00021369,2]
[362368920,1748221850379,-3021.72,0.00021369,2]
[362368921,1748221850389,-430.0,0.00021369,2]
[362368922,1748221850400,-3261.27,0.00021369,2]
[362368923,1748221850409,-204.28,0.00021369,2]
[362368924,1748221850421,-430.0,0.00021369,2]
[362368925,1748221850431,-2107.1,0.00021369,2]
[362368926,1748221850440,-430.0,0.00021369,2]
[362368927,1748221850451,-365.09926588,0.00021452,5]
[362368928,1748221850462,-1000.0,0.00021473,2]
[362368929,1748221850472,-1200.0,0.00021473,2]
[362368930,1748221850483,-365.09926588,0.00021624,5]
[362368931,1748221850493,-441.61,0.00021643,2]
[362368932,1748221850503,-976.93,0.00021643,2]
[362368933,1748221850513,-3021.72,0.00021643,2]
[362368934,1748221850525,-430.0,0.00021643,2]
[362368935,1748221850535,-3261.27,0.00021643,2]
[362368936,1748221850544,-430.0,0.00021643,2]
[362368937,1748221850554,-2107.1,0.00021643,2]
[362368938,1748221850565,-430.0,0.00021643,2]
[362368939,1748221850575,-215.0738,0.00021689,2]
[362368940,1748221850585,-365.09926588,0.00021797,6]
[362368941,1748221850596,-156.305,0.00021899,2]
[362368942,1748221850605,-707.0,0.00021899,2]
[362368943,1748221850616,-2232.0,0.00021899,2]
[362368944,1748221850625,-2239.94,0.000219,2]
[362368945,1748221850635,-500.0,0.00021917,2]
[362368946,1748221850645,-441.61,0.00021917,2]
[362368947,1748221850657,-4530.91,0.00021917,2]
[362368948,1748221850667,-976.93,0.00021917,2]
[362368949,1748221850678,-3021.72,0.00021917,2]
[362368950,1748221850688,-430.0,0.00021917,2]
[362368951,1748221850698,-3261.27,0.00021917,2]
[362368952,1748221850707,-430.0,0.00021917,2]
[362368953,1748221850717,-2107.1,0.00021917,2]
[362368954,1748221850726,-430.0,0.00021917,2]
[362368955,1748221850736,-365.09926588,0.00021969,6]
[362368956,1748221850746,-158.52349651,0.00021989,2]
[362368957,1748221850755,-2200.0,0.00021989,2]
[362368958,1748221850768,-155.0,0.00022,2]
[362368959,1748221850778,-1500.0,0.00022021,2]
[362368960,1748221850788,-1800.0,0.00022021,2]
[362368961,1748221850798,-365.09926588,0.00022141,6]
[362368962,1748221850810,-441.61,0.00022191,2]
[362368963,1748221850820,-976.93,0.00022191,2]
[362368964,1748221850830,-3021.72,0.00022191,2]
[362368965,1748221850840,-430.0,0.00022191,2]
[362368966,1748221850851,-3261.27,0.00022191,2]
[362368967,1748221850861,-430.0,0.00022191,2]